Workbook

Sheet Sheet1
A1: Angle i (deg) | B1: Angle t (deg) | C1: Angle i (rad) | D1: Angle t (rad) | E1: r12s | F1: r12p | G1: Rs | H1: Rp | K1: n1 | L1: n2
A2: 0 | B2: =IF(ISERROR((180/PI())*ASIN((K$2/L$2)*SIN(A2*PI()/180))),90,(180/PI())*ASIN((K$2/L$2)*SIN(A2*PI()/180))) -> 0 | C2: =A2*PI()/180 -> 0 | D2: =B2*PI()/180 -> 0 | E2: =(K$2*COS(C2)-L$2*COS(D2))/(K$2*COS(C2)+L$2*COS(D2)) -> -0.2277992278 | F2: =(L$2*COS(C2)-K$2*COS(D2))/(L$2*COS(C2)+K$2*COS(D2)) -> 0.2277992278 | G2: =E2^2 -> 0.05189248819 | H2: =F2^2 -> 0.05189248819 | K2: =K3/100 -> 1 | L2: =L3/100 -> 1.59
A3: =A2+0.5 -> 0.5 | B3: =IF(ISERROR((180/PI())*ASIN((K$2/L$2)*SIN(A3*PI()/180))),90,(180/PI())*ASIN((K$2/L$2)*SIN(A3*PI()/180))) -> 0.3144629962 | C3: =A3*PI()/180 -> 0.00872664626 | D3: =B3*PI()/180 -> 0.00548841466 | E3: =(K$2*COS(C3)-L$2*COS(D3))/(K$2*COS(C3)+L$2*COS(D3)) -> -0.2278101387 | F3: =(L$2*COS(C3)-K$2*COS(D3))/(L$2*COS(C3)+K$2*COS(D3)) -> 0.2277883168 | G3: =E3^2 -> 0.0518974593 | H3: =F3^2 -> 0.05188751729 | K3: 100 | L3: 159
A4: =A3+0.5 -> 1 | B4: 0.6289115166 | C4: 0.01745329252 | D4: =B4*PI()/180 -> 0.01097657667 | E4: =(K$2*COS(C4)-L$2*COS(D4))/(K$2*COS(C4)+L$2*COS(D4)) -> -0.2278428747 | F4: =(L$2*COS(C4)-K$2*COS(D4))/(L$2*COS(C4)+K$2*COS(D4)) -> 0.22775558 | G4: 0.05191237556 | H4: 0.05187260421
A5: 1.5 | B5: 0.9433310822 | C5: 0.02617993878 | D5: 0.01646423332 | E5: =(K$2*COS(C5)-L$2*COS(D5))/(K$2*COS(C5)+L$2*COS(D5)) -> -0.2278974457 | F5: =(L$2*COS(C5)-K$2*COS(D5))/(L$2*COS(C5)+K$2*COS(D5)) -> 0.2277010053 | G5: 0.05193724575 | H5: 0.0518477478
A6: 2 | B6: 1.257707209 | C6: 0.03490658504 | D6: 0.02195113182 | E6: =(K$2*COS(C6)-L$2*COS(D6))/(K$2*COS(C6)+L$2*COS(D6)) -> -0.2279738681 | F6: =(L$2*COS(C6)-K$2*COS(D6))/(L$2*COS(C6)+K$2*COS(D6)) -> 0.2276245728 | G6: 0.05197208454 | H6: 0.05181294616
A7: 2.5 | B7: 1.572025403 | C7: 0.0436332313 | D7: 0.02743701922 | E7: -0.228072165 | F7: 0.2275262548 | G7: 0.05201691246 | H7: 0.05176819661
A8: 3 | B8: 1.886271162 | C8: 0.05235987756 | D8: 0.03292164236 | E8: -0.2281923661 | F8: 0.2274060152 | G8: 0.05207175594 | H8: 0.05171349576
A9: 3.5 | B9: 2.200429966 | C9: 0.06108652382 | D9: 0.03840474787 | E9: -0.2283345076 | F9: 0.2272638103 | G9: 0.05213664735 | H9: 0.05164883947
A10: 4 | B10: 2.514487281 | C10: 0.06981317008 | D10: 0.04388608205 | E10: -0.2284986324 | F10: 0.227099588 | G10: 0.05221162502 | H10: 0.05157422288
A11: 4.5 | B11: 2.828428551 | C11: 0.07853981634 | D11: 0.04936539088 | E11: -0.2286847902 | F11: 0.2269132884 | G11: 0.05229673327 | H11: 0.05148964045
A12: 5 | B12: 3.1422392 | C12: 0.0872664626 | D12: 0.05484241992 | E12: -0.2288930371 | F12: 0.2267048432 | G12: 0.05239202245 | H12: 0.05139508595
A13: 5.5 | B13: 3.455904623 | C13: 0.09599310886 | D13: 0.06031691431 | E13: -0.2291234362 | F13: 0.2264741763 | G13: 0.05249754901 | H13: 0.05129055251
A14: 6 | B14: 3.76941019 | C14: 0.1047197551 | D14: 0.06578861868 | E14: -0.229376057 | F14: 0.2262212029 | G14: 0.05261337553 | H14: 0.05117603263
A15: 6.5 | B15: 4.08274124 | C15: 0.1134464014 | D15: 0.07125727714 | E15: -0.2296509761 | F15: 0.2259458303 | G15: 0.05273957082 | H15: 0.05105151823
A16: 7 | B16: 4.395883074 | C16: 0.1221730476 | D16: 0.07672263318 | E16: -0.2299482766 | F16: 0.2256479574 | G16: 0.05287620992 | H16: 0.05091700067
A17: 7.5 | B17: 4.708820962 | C17: 0.1308996939 | D17: 0.08218442967 | E17: -0.2302680487 | F17: 0.2253274745 | G17: 0.05302337425 | H17: 0.05077247078
A18: 8 | B18: 5.02154013 | C18: 0.1396263402 | D18: 0.08764240878 | E18: -0.2306103892 | F18: 0.2249842637 | G18: 0.05318115163 | H18: 0.05061791893
A19: 8.5 | B19: 5.334025764 | C19: 0.1483529864 | D19: 0.09309631196 | E19: -0.2309754021 | F19: 0.2246181984 | G19: 0.05334963639 | H19: 0.05045333505
A20: 9 | B20: 5.646263004 | C20: 0.1570796327 | D20: 0.09854587985 | E20: -0.2313631982 | F20: 0.2242291433 | G20: 0.05352892947 | H20: 0.05027870869
A21: 9.5 | B21: 5.958236942 | C21: 0.1658062789 | D21: 0.1039908522 | E21: -0.2317738952 | F21: 0.2238169544 | G21: 0.05371913851 | H21: 0.05009402907
A22: 10 | B22: 6.26993262 | C22: 0.1745329252 | D22: 0.1094309681 | E22: -0.2322076182 | F22: 0.2233814789 | G22: 0.05392037793 | H22: 0.04989928514
A23: 10.5 | B23: 6.581335024 | C23: 0.1832595715 | D23: 0.1148659654 | E23: -0.232664499 | F23: 0.2229225552 | G23: 0.05413276911 | H23: 0.04969446564
A24: 11 | B24: 6.892429088 | C24: 0.1919862177 | D24: 0.120295581 | E24: -0.233144677 | F24: 0.2224400125 | G24: 0.05435644043 | H24: 0.04947955916
A25: 11.5 | B25: 7.203199682 | C25: 0.200712864 | D25: 0.1257195511 | E25: -0.2336482986 | F25: 0.2219336708 | G25: 0.05459152744 | H25: 0.04925455423
A26: 12 | B26: 7.513631616 | C26: 0.2094395102 | D26: 0.1311376105 | E26: -0.2341755175 | F26: 0.2214033409 | G26: 0.05483817299 | H26: 0.04901943937
A27: 12.5 | B27: 7.823709635 | C27: 0.2181661565 | D27: 0.1365494929 | E27: -0.2347264949 | F27: 0.2208488243 | G27: 0.05509652739 | H27: 0.0487742032
A28: 13 | B28: 8.133418417 | C28: 0.2268928028 | D28: 0.1419549308 | E28: -0.2353013993 | F28: 0.2202699128 | G28: 0.05536674849 | H28: 0.04851883447
A29: 13.5 | B29: 8.442742568 | C29: 0.235619449 | D29: 0.1473536557 | E29: -0.2359004068 | F29: 0.2196663885 | G29: 0.05564900192 | H29: 0.04825332224
A30: 14 | B30: 8.75166662 | C30: 0.2443460953 | D30: 0.1527453976 | E30: -0.2365237012 | F30: 0.2190380239 | G30: 0.05594346122 | H30: 0.04797765589
A31: 14.5 | B31: 9.060175032 | C31: 0.2530727415 | D31: 0.1581298851 | E31: -0.2371714738 | F31: 0.2183845812 | G31: 0.05625030798 | H31: 0.0476918253
A32: 15 | B32: 9.368252181 | C32: 0.2617993878 | D32: 0.1635068457 | E32: -0.2378439238 | F32: 0.2177058127 | G32: 0.05656973207 | H32: 0.04739582088
A33: 15.5 | B33: 9.675882364 | C33: 0.2705260341 | D33: 0.1688760053 | E33: -0.2385412581 | F33: 0.2170014603 | G33: 0.05690193183 | H33: 0.04708963377
A34: 16 | B34: 9.983049792 | C34: 0.2792526803 | D34: 0.1742370883 | E34: -0.2392636918 | F34: 0.2162712554 | G34: 0.05724711422 | H34: 0.04677325589
A35: 16.5 | B35: 10.28973859 | C35: 0.2879793266 | D35: 0.1795898175 | E35: -0.2400114478 | F35: 0.2155149186 | G35: 0.05760549509 | H35: 0.04644668014
A36: 17 | B36: 10.59593279 | C36: 0.2967059728 | D36: 0.1849339145 | E36: -0.2407847573 | F36: 0.2147321599 | G36: 0.05797729934 | H36: 0.04610990048
A37: 17.5 | B37: 10.90161634 | C37: 0.3054326191 | D37: 0.1902690988 | E37: -0.2415838595 | F37: 0.2139226779 | G37: 0.05836276119 | H37: 0.04576291212
A38: 18 | B38: 11.20677307 | C38: 0.3141592654 | D38: 0.1955950886 | E38: -0.2424090023 | F38: 0.2130861602 | G38: 0.05876212439 | H38: 0.04540571166
A39: 18.5 | B39: 11.51138675 | C39: 0.3228859116 | D39: 0.2009116002 | E39: -0.2432604417 | F39: 0.2122222827 | G39: 0.05917564251 | H39: 0.04503829726
A40: 19 | B40: 11.815441 | C40: 0.3316125579 | D40: 0.2062183481 | E40: -0.2441384425 | F40: 0.2113307095 | G40: 0.05960357912 | H40: 0.0446606688
A41: 19.5 | B41: 12.11891938 | C41: 0.3403392041 | D41: 0.211515045 | E41: -0.2450432781 | F41: 0.2104110931 | G41: 0.06004620814 | H41: 0.0442728281
A42: 20 | B42: 12.42180532 | C42: 0.3490658504 | D42: 0.216801402 | E42: -0.2459752306 | F42: 0.2094630734 | G42: 0.06050381409 | H42: 0.0438747791
A43: 20.5 | B43: 12.72408215 | C43: 0.3577924967 | D43: 0.2220771279 | E43: -0.2469345912 | F43: 0.2084862778 | G43: 0.06097669235 | H43: 0.04346652805
A44: 21 | B44: 13.02573308 | C44: 0.3665191429 | D44: 0.2273419297 | E44: -0.24792166 | F44: 0.2074803214 | G44: 0.06146514951 | H44: 0.04304808377
A45: 21.5 | B45: 13.32674121 | C45: 0.3752457892 | D45: 0.2325955126 | E45: -0.2489367463 | F45: 0.2064448058 | G45: 0.06196950367 | H45: 0.04261945785
A46: 22 | B46: 13.62708951 | C46: 0.3839724354 | D46: 0.2378375794 | E46: -0.2499801687 | F46: 0.2053793196 | G46: 0.06249008476 | H46: 0.04218066491
A47: 22.5 | B47: 13.92676086 | C47: 0.3926990817 | D47: 0.2430678311 | E47: -0.2510522553 | F47: 0.2042834376 | G47: 0.0630272349 | H47: 0.04173172287
A48: 23 | B48: 14.22573798 | C48: 0.401425728 | D48: 0.2482859663 | E48: -0.2521533437 | F48: 0.2031567208 | G48: 0.06358130872 | H48: 0.0412726532
A49: 23.5 | B49: 14.5240035 | C49: 0.4101523742 | D49: 0.2534916816 | E49: -0.2532837811 | F49: 0.201998716 | G49: 0.06415267378 | H49: 0.04080348127
A50: 24 | B50: 14.8215399 | C50: 0.4188790205 | D50: 0.2586846714 | E50: -0.2544439249 | F50: 0.2008089554 | G50: 0.06474171091 | H50: 0.04032423657
A51: 24.5 | B51: 15.11832952 | C51: 0.4276056667 | D51: 0.2638646276 | E51: -0.2556341421 | F51: 0.1995869563 | G51: 0.06534881463 | H51: 0.03983495312
A52: 25 | B52: 15.4143546 | C52: 0.436332313 | D52: 0.2690312399 | E52: -0.2568548103 | F52: 0.1983322207 | G52: 0.06597439356 | H52: 0.03933566977
A53: 25.5 | B53: 15.70959723 | C53: 0.4450589593 | D53: 0.2741841957 | E53: -0.258106317 | F53: 0.1970442351 | G53: 0.06661887086 | H53: 0.03882643057
A54: 26 | B54: 16.00403933 | C54: 0.4537856055 | D54: 0.27932318 | E54: -0.2593890604 | F54: 0.1957224698 | G54: 0.06728268466 | H54: 0.03830728518
A55: 26.5 | B55: 16.29766274 | C55: 0.4625122518 | D55: 0.2844478751 | E55: -0.2607034494 | F55: 0.1943663788 | G55: 0.06796628851 | H55: 0.03777828923
A56: 27 | B56: 16.5904491 | C56: 0.471238898 | D56: 0.2895579612 | E56: -0.2620499035 | F56: 0.1929753995 | G56: 0.0686701519 | H56: 0.0372395048
A57: 27.5 | B57: 16.88237994 | C57: 0.4799655443 | D57: 0.2946531155 | E57: -0.2634288533 | F57: 0.1915489516 | G57: 0.06939476075 | H57: 0.03669100087
A58: 28 | B58: 17.17343663 | C58: 0.4886921906 | D58: 0.2997330131 | E58: -0.2648407406 | F58: 0.1900864375 | G58: 0.0701406179 | H58: 0.03613285374
A59: 28.5 | B59: 17.4636004 | C59: 0.4974188368 | D59: 0.3047973262 | E59: -0.2662860185 | F59: 0.1885872414 | G59: 0.07090824366 | H59: 0.03556514763
A60: 29 | B60: 17.7528523 | C60: 0.5061454831 | D60: 0.3098457243 | E60: -0.2677651515 | F60: 0.1870507288 | G60: 0.07169817637 | H60: 0.03498797514
A61: 29.5 | B61: 18.04117326 | C61: 0.5148721293 | D61: 0.3148778743 | E61: -0.2692786159 | F61: 0.1854762461 | G61: 0.072510973 | H61: 0.03440143787
A62: 30 | B62: 18.32854404 | C62: 0.5235987756 | D62: 0.3198934405 | E62: -0.2708268999 | F62: 0.1838631202 | G62: 0.07334720971 | H62: 0.03380564698
A63: 30.5 | B63: 18.61494523 | C63: 0.5323254219 | D63: 0.3248920843 | E63: -0.2724105036 | F63: 0.1822106579 | G63: 0.07420748248 | H63: 0.03320072385
A64: 31 | B64: 18.90035727 | C64: 0.5410520681 | D64: 0.3298734642 | E64: -0.2740299396 | F64: 0.1805181452 | G64: 0.07509240777 | H64: 0.03258680076
A65: 31.5 | B65: 19.18476045 | C65: 0.5497787144 | D65: 0.334837236 | E65: -0.2756857326 | F65: 0.1787848471 | G65: 0.07600262319 | H65: 0.03196402154
A66: 32 | B66: 19.46813486 | C66: 0.5585053606 | D66: 0.3397830526 | E66: -0.2773784205 | F66: 0.1770100065 | G66: 0.07693878815 | H66: 0.03133254238
A67: 32.5 | B67: =IF(ISERROR((180/PI())*ASIN((K$2/L$2)*SIN(A67*PI()/180))),90,(180/PI())*ASIN((K$2/L$2)*SIN(A67*PI()/180))) -> 19.75046047 | C67: =A67*PI()/180 -> 0.5672320069 | D67: 0.344710564 | E67: -0.2791085535 | F67: 0.1751928441 | G67: =E67^2 -> 0.07790158462 | H67: =F67^2 -> 0.03069253262
A68: =A67+0.5 -> 33 | B68: 20.03171705 | C68: 0.5759586532 | D68: =B68*PI()/180 -> 0.3496194173 | E68: -0.2808766951 | F68: 0.1733325576 | G68: 0.07889171786 | H68: 0.03004417552
A69: 33.5 | B69: 20.31188419 | C69: 0.5846852994 | D69: 0.3545092565 | E69: -0.2826834222 | F69: 0.171428321 | G69: 0.07990991719 | H69: 0.02938766923
A70: 34 | B70: 20.59094135 | C70: 0.5934119457 | D70: 0.3593797227 | E70: =(K$2*COS(C70)-L$2*COS(D70))/(K$2*COS(C70)+L$2*COS(D70)) -> -0.2845293249 | F70: =(L$2*COS(C70)-K$2*COS(D70))/(L$2*COS(C70)+K$2*COS(D70)) -> 0.1694792838 | G70: 0.08095693675 | H70: 0.02872322765
A71: 34.5 | B71: 20.86886779 | C71: 0.6021385919 | D71: 0.364230454 | E71: -0.2864150073 | F71: 0.1674845708 | G71: 0.08203355639 | H71: 0.02805108147
A72: 35 | B72: 21.14564258 | C72: 0.6108652382 | D72: 0.3690610855 | E72: -0.288341087 | F72: 0.1654432808 | G72: 0.08314058247 | H72: 0.02737147917
A73: 35.5 | B73: 21.42124466 | C73: 0.6195918845 | D73: 0.3738712492 | E73: -0.2903081962 | F73: 0.1633544862 | G73: 0.08427884877 | H73: 0.02668468817
A74: 36 | B74: 21.69565275 | C74: 0.6283185307 | D74: 0.3786605738 | E74: -0.292316981 | F74: 0.1612172322 | G74: 0.08544921738 | H74: 0.02599099595
A75: 36.5 | B75: 21.96884541 | C75: 0.637045177 | D75: 0.3834286852 | E75: -0.2943681024 | F75: 0.1590305358 | G75: 0.08665257969 | H75: 0.02529071132
A76: 37 | B76: 22.24080102 | C76: 0.6457718232 | D76: 0.388175206 | E76: -0.2964622359 | F76: 0.1567933854 | G76: 0.08788985734 | H76: 0.0245841657
A77: 37.5 | B77: 22.51149777 | C77: 0.6544984695 | D77: 0.3928997557 | E77: -0.2986000724 | F77: 0.1545047395 | G77: 0.08916200322 | H77: 0.02387171452
A78: 38 | B78: 22.7809137 | C78: 0.6632251158 | D78: 0.3976019507 | E78: -0.3007823176 | F78: 0.152163526 | G78: 0.09047000256 | H78: 0.02315373863
A79: 38.5 | B79: 23.04902663 | C79: 0.671951762 | D79: 0.4022814041 | E79: -0.3030096929 | F79: 0.1497686413 | G79: 0.09181487398 | H79: 0.02243064593
A80: 39 | B80: 23.31581422 | C80: 0.6806784083 | D80: 0.4069377259 | E80: -0.3052829354 | F80: 0.1473189496 | G80: 0.09319767065 | H80: 0.0217028729
A81: 39.5 | B81: 23.58125394 | C81: 0.6894050545 | D81: 0.411570523 | E81: -0.3076027981 | F81: 0.1448132812 | G81: 0.0946194814 | H81: 0.02097088642
A82: 40 | B82: 23.84532308 | C82: 0.6981317008 | D82: 0.4161793989 | E82: -0.3099700501 | F82: 0.1422504323 | G82: 0.09608143199 | H82: 0.0202351855
A83: 40.5 | B83: 24.10799874 | C83: 0.7068583471 | D83: 0.4207639541 | E83: -0.3123854771 | F83: 0.1396291636 | G83: 0.09758468628 | H83: 0.01949630331
A84: 41 | B84: 24.36925785 | C84: 0.7155849933 | D84: 0.4253237858 | E84: -0.314849881 | F84: 0.1369481988 | G84: 0.09913044757 | H84: 0.01875480916
A85: 41.5 | B85: 24.62907715 | C85: 0.7243116396 | D85: 0.429858488 | E85: -0.317364081 | F85: 0.1342062244 | G85: 0.1007199599 | H85: 0.01801131066
A86: 42 | B86: 24.88743319 | C86: 0.7330382858 | D86: 0.4343676516 | E86: -0.3199289131 | F86: 0.1314018875 | G86: 0.1023545095 | H86: 0.01726645605
A87: 42.5 | B87: 25.14430236 | C87: 0.7417649321 | D87: 0.4388508643 | E87: -0.3225452308 | F87: 0.1285337955 | G87: 0.1040354259 | H87: 0.0165209366
A88: 43 | B88: 25.39966084 | C88: 0.7504915784 | D88: 0.4433077106 | E88: -0.325213905 | F88: 0.1256005142 | G88: 0.105764084 | H88: 0.01577548916
A89: 43.5 | B89: 25.65348466 | C89: 0.7592182246 | D89: 0.4477377719 | E89: -0.3279358243 | F89: 0.1226005665 | G89: 0.1075419049 | H89: 0.01503089892
A90: 44 | B90: 25.90574964 | C90: 0.7679448709 | D90: 0.4521406264 | E90: -0.3307118956 | F90: 0.1195324317 | G90: 0.1093703579 | H90: 0.01428800222
A91: 44.5 | B91: 26.15643144 | C91: 0.7766715171 | D91: 0.4565158492 | E91: -0.3335430437 | F91: 0.1163945431 | G91: 0.111250962 | H91: 0.01354768967
A92: 45 | B92: 26.40550555 | C92: 0.7853981634 | D92: 0.4608630125 | E92: -0.336430212 | F92: 0.1131852875 | G92: 0.1131852875 | H92: 0.01281090932
A93: 45.5 | B93: 26.65294727 | C93: 0.7941248097 | D93: 0.4651816851 | E93: -0.3393743625 | F93: 0.1099030031 | G93: 0.1151749579 | H93: 0.01207867008
A94: 46 | B94: 26.89873173 | C94: 0.8028514559 | D94: 0.4694714332 | E94: -0.3423764762 | F94: 0.1065459778 | G94: 0.1172216515 | H94: 0.01135204538
A95: 46.5 | B95: 27.14283389 | C95: 0.8115781022 | D95: 0.4737318197 | E95: -0.345437553 | F95: 0.1031124482 | G95: 0.119327103 | H95: 0.01063217697
A96: 47 | B96: 27.38522856 | C96: 0.8203047484 | D96: 0.4779624047 | E96: -0.3485586122 | F96: 0.09960059723 | G96: 0.1214931061 | H96: 0.009920278969
A97: 47.5 | B97: 27.62589035 | C97: 0.8290313947 | D97: 0.4821627454 | E97: -0.3517406925 | F97: 0.09600855288 | G97: 0.1237215147 | H97: 0.009217642226
A98: =A97+0.5 -> 48 | B98: 27.86479373 | C98: 0.837758041 | D98: 0.4863323961 | E98: -0.3549848524 | F98: 0.092334386 | G98: 0.1260142454 | H98: 0.008525638837
A99: =A98+0.5 -> 48.5 | B99: 28.10191302 | C99: 0.8464846872 | D99: 0.4904709083 | E99: -0.3582921702 | F99: 0.08857610857 | G99: 0.1283732792 | H99: 0.007845727009
A100: 49 | B100: 28.33722235 | C100: 0.8552113335 | D100: 0.4945778309 | E100: -0.3616637444 | F100: 0.08473167169 | G100: 0.130800664 | H100: 0.007179456187
A101: 49.5 | B101: 28.57069573 | C101: 0.8639379797 | D101: 0.49865271 | E101: -0.3651006934 | F101: 0.08079896348 | G101: 0.1332985163 | H101: 0.0065284725
A102: 50 | B102: 28.802307 | C102: 0.872664626 | D102: 0.5026950893 | E102: -0.3686041565 | F102: 0.07677580698 | G102: 0.1358690242 | H102: 0.005894524537
A103: 50.5 | B103: 29.03202986 | C103: 0.8813912723 | D103: 0.5067045096 | E103: -0.372175293 | F103: 0.07265995784 | G103: 0.1385144488 | H103: 0.005279469473
A104: 51 | B104: 29.25983789 | C104: 0.8901179185 | D104: 0.5106805097 | E104: -0.3758152835 | F104: 0.06844910207 | G104: 0.1412371273 | H104: 0.004685279574
A105: 51.5 | B105: 29.4857045 | C105: 0.8988445648 | D105: 0.5146226258 | E105: -0.3795253289 | F105: 0.06414085357 | G105: 0.1440394753 | H105: 0.004114049097
A106: 52 | B106: 29.709603 | C106: 0.907571211 | D106: 0.5185303918 | E106: -0.3833066515 | F106: 0.05973275162 | G106: 0.1469239891 | H106: 0.003568001617
A107: 52.5 | B107: 29.93150656 | C107: 0.9162978573 | D107: 0.5224033395 | E107: -0.3871604944 | F107: 0.05522225827 | G107: 0.1498932484 | H107: 0.003049497809
A108: 53 | B108: 30.15138823 | C108: 0.9250245036 | D108: 0.5262409987 | E108: -0.3910881222 | F108: 0.05060675557 | G108: 0.1529499193 | H108: 0.002561043709
A109: 53.5 | B109: 30.36922096 | C109: 0.9337511498 | D109: 0.530042897 | E109: -0.3950908206 | F109: 0.04588354274 | G109: 0.1560967565 | H109: 0.002105299495
A110: 54 | B110: 30.58497758 | C110: 0.9424777961 | D110: 0.5338085604 | E110: -0.3991698967 | F110: 0.04104983321 | G110: 0.1593366064 | H110: 0.001685088806
A111: 54.5 | B111: 30.79863083 | C111: 0.9512044423 | D111: 0.5375375131 | E111: -0.4033266791 | F111: 0.03610275147 | G111: 0.1626724101 | H111: 0.001303408664
A112: 55 | B112: 31.01015335 | C112: 0.9599310886 | D112: 0.5412292776 | E112: -0.4075625179 | F112: 0.03103932991 | G112: 0.166107206 | H112: 0.0009634400012
A113: 55.5 | B113: 31.21951771 | C113: 0.9686577349 | D113: 0.5448833748 | E113: -0.4118787847 | F113: 0.02585650539 | G113: 0.1696441333 | H113: 0.0006685588707
A114: 56 | B114: 31.42669637 | C114: 0.9773843811 | D114: 0.5484993247 | E114: -0.4162768726 | F114: 0.02055111573 | G114: 0.1732864346 | H114: 0.0004223483576
A115: 56.5 | B115: 31.63166176 | C115: 0.9861110274 | D115: 0.5520766455 | E115: -0.4207581962 | F115: 0.01511989605 | G115: 0.1770374597 | H115: 0.0002286112566
A116: 57 | B116: 31.83438622 | C116: 0.9948376736 | D116: 0.5556148549 | E116: -0.4253241919 | F116: 0.00955947493 | G116: 0.1809006682 | H116: 9.138356094e-05
A117: 57.5 | B117: 32.03484206 | C117: 1.00356432 | D117: 0.5591134693 | E117: -0.4299763173 | F117: 0.003866370379 | G117: 0.1848796334 | H117: 1.49488199e-05
A118: 58 | B118: 32.23300153 | C118: 1.012290966 | D118: 0.5625720045 | E118: -0.4347160514 | F118: -0.001963014344 | G118: 0.1889780453 | H118: 3.853425315e-06
A119: 58.5 | B119: 32.42883685 | C119: 1.021017612 | D119: 0.5659899757 | E119: -0.4395448947 | F119: -0.007932395113 | G119: 0.1931997144 | H119: 6.292289223e-05
A120: 59 | B120: 32.62232024 | C120: 1.029744259 | D120: 0.5693668978 | E120: -0.4444643687 | F120: -0.01404561152 | G120: 0.1975485751 | H120: 0.0001972792031
A121: 59.5 | B121: 32.81342387 | C121: 1.038470905 | D121: 0.5727022854 | E121: -0.4494760163 | F121: -0.02030663169 | G121: 0.2020286892 | H121: 0.0004123592906
A122: 60 | B122: 33.00211993 | C122: 1.047197551 | D122: 0.5759956529 | E122: -0.454581401 | F122: -0.02671955727 | G122: 0.2066442501 | H122: 0.0007139347407
A123: 60.5 | B123: 33.18838062 | C123: 1.055924197 | D123: 0.5792465153 | E123: -0.4597821071 | F123: -0.03328862872 | G123: 0.211399586 | H123: 0.001108132802
A124: 61 | B124: 33.37217816 | C124: 1.064650844 | D124: 0.5824543875 | E124: -0.4650797397 | F124: -0.0400182308 | G124: 0.2162991643 | H124: 0.001601458796
A125: 61.5 | B125: 33.55348479 | C125: 1.07337749 | D125: 0.5856187851 | E125: -0.4704759238 | F125: -0.04691289836 | G125: 0.2213475949 | H125: 0.002200820033
A126: 62 | B126: 33.73227281 | C126: 1.082104136 | D126: 0.5887392247 | E126: -0.4759723047 | F126: -0.0539773224 | G126: 0.2265496349 | H126: 0.002913551334
A127: 62.5 | B127: 33.90851456 | C127: 1.090830782 | D127: 0.5918152235 | E127: -0.4815705473 | F127: -0.06121635641 | G127: 0.231910192 | H127: 0.003747442292
A128: 63 | B128: 34.08218247 | C128: 1.099557429 | D128: 0.5948463004 | E128: -0.4872723358 | F128: -0.06863502301 | G128: 0.2374343292 | H128: 0.004710766384
A129: 63.5 | B129: 34.25324904 | C129: 1.108284075 | D129: 0.5978319752 | E129: -0.4930793735 | F129: -0.07623852102 | G129: 0.2431272686 | H129: 0.005812312088
A130: 64 | B130: 34.42168687 | C130: 1.117010721 | D130: 0.60077177 | E130: -0.4989933824 | F130: -0.08403223274 | G130: 0.2489943956 | H130: 0.007061416139
A131: 64.5 | B131: =IF(ISERROR((180/PI())*ASIN((K$2/L$2)*SIN(A131*PI()/180))),90,(180/PI())*ASIN((K$2/L$2)*SIN(A131*PI()/180))) -> 34.58746867 | C131: =A131*PI()/180 -> 1.125737368 | D131: 0.6036652082 | E131: -0.5050161025 | F131: -0.0920217317 | G131: =E131^2 -> 0.2550412638 | H131: =F131^2 -> 0.008467999105
A132: 65 | B132: 34.75056727 | C132: 1.134464014 | D132: =B132*PI()/180 -> 0.6065118158 | E132: -0.5111492916 | F132: -0.1002127908 | G132: 0.2612735983 | H132: 0.01004260344
A133: 65.5 | B133: 34.91095566 | C133: 1.14319066 | D133: 0.6093111212 | E133: -0.5173947248 | F133: -0.1086113908 | G133: 0.2676973013 | H133: 0.01179643422
A134: 66 | B134: 35.06860695 | C134: 1.151917306 | D134: 0.6120626553 | E134: =(K$2*COS(C134)-L$2*COS(D134))/(K$2*COS(C134)+L$2*COS(D134)) -> -0.5237541937 | F134: =(L$2*COS(C134)-K$2*COS(D134))/(L$2*COS(C134)+K$2*COS(D134)) -> -0.1172237295 | G134: 0.2743184554 | H134: 0.01374140276
A135: 66.5 | B135: 35.22349444 | C135: 1.160643953 | D135: 0.6147659521 | E135: -0.530229506 | F135: -0.1260562308 | G135: 0.281143329 | H135: 0.01589017333
A136: 67 | B136: 35.37559163 | C136: 1.169370599 | D136: 0.6174205488 | E136: -0.5368224849 | F136: -0.1351155552 | G136: 0.2881783803 | H136: 0.01825621325
A137: 67.5 | B137: 35.52487218 | C137: 1.178097245 | D137: 0.620025986 | E137: -0.5435349683 | F137: -0.1444086098 | G137: 0.2954302618 | H137: 0.02085384659
A138: 68 | B138: 35.67131001 | C138: 1.186823891 | D138: 0.6225818082 | E138: -0.5503688084 | F138: -0.1539425599 | G138: 0.3029058253 | H138: 0.02369831174
A139: 68.5 | B139: 35.81487923 | C139: 1.195550538 | D139: 0.6250875638 | E139: -0.5573258705 | F139: -0.1637248402 | G139: 0.3106121259 | H139: 0.02680582329
A140: 69 | B140: 35.95555424 | C140: 1.204277184 | D140: 0.6275428059 | E140: -0.5644080325 | F140: -0.1737631675 | G140: 0.3185564272 | H140: 0.03019363838
A141: 69.5 | B141: 36.09330968 | C141: 1.21300383 | D141: 0.6299470918 | E141: -0.5716171841 | F141: -0.1840655536 | G141: 0.3267462051 | H141: 0.03388012804
A142: 70 | B142: 36.22812046 | C142: 1.221730476 | D142: 0.6322999839 | E142: -0.5789552257 | F142: -0.1946403193 | G142: 0.3351891534 | H142: 0.03788485388
A143: 70.5 | B143: 36.35996183 | C143: 1.230457123 | D143: 0.6346010499 | E143: -0.5864240677 | F143: -0.2054961084 | G143: 0.3438931872 | H143: 0.04222865056
A144: 71 | B144: 36.48880933 | C144: 1.239183769 | D144: 0.6368498629 | E144: -0.5940256295 | F144: -0.2166419039 | G144: 0.3528664485 | H144: 0.04693371453
A145: 71.5 | B145: 36.61463882 | C145: 1.247910415 | D145: 0.6390460018 | E145: -0.6017618383 | F145: -0.2280870439 | G145: 0.36211731 | H145: 0.05202369958
A146: 72 | B146: 36.73742654 | C146: 1.256637061 | D146: 0.6411890518 | E146: -0.6096346282 | F146: -0.2398412388 | G146: 0.3716543799 | H146: 0.05752381982
A147: 72.5 | B147: 36.85714908 | C147: 1.265363708 | D147: 0.6432786044 | E147: -0.6176459391 | F147: -0.25191459 | G147: 0.3814865061 | H147: 0.06346096067
A148: 73 | B148: 36.97378342 | C148: 1.274090354 | D148: 0.6453142577 | E148: -0.6257977155 | F148: -0.2643176092 | G148: 0.3916227808 | H148: 0.06986379855
A149: 73.5 | B149: 37.08730695 | C149: 1.282817 | D149: 0.647295617 | E149: -0.6340919054 | F149: -0.277061239 | G149: 0.4020725445 | H149: 0.07676293014
A150: 74 | B150: 37.19769746 | C150: 1.291543646 | D150: 0.6492222949 | E150: -0.6425304588 | F150: -0.2901568747 | G150: 0.4128453905 | H150: 0.08419101193
A151: 74.5 | B151: 37.3049332 | C151: 1.300270293 | D151: 0.6510939117 | E151: -0.6511153267 | F151: -0.303616388 | G151: 0.4239511687 | H151: 0.09218291109
A152: 75 | B152: 37.40899287 | C152: 1.308996939 | D152: 0.6529100954 | E152: -0.6598484596 | F152: -0.3174521516 | G152: 0.4353999897 | H152: 0.1007758686
A153: 75.5 | B153: 37.50985561 | C153: 1.317723585 | D153: 0.6546704824 | E153: -0.6687318062 | F153: -0.3316770654 | G153: 0.4472022287 | H153: 0.1100096757
A154: 76 | B154: 37.60750111 | C154: 1.326450232 | D154: 0.6563747178 | E154: -0.6777673119 | F154: -0.3463045848 | G154: 0.4593685291 | H154: 0.1199268655
A155: 76.5 | B155: 37.7019095 | C155: 1.335176878 | D155: 0.6580224551 | E155: -0.6869569173 | F155: -0.3613487507 | G155: 0.4719098062 | H155: 0.1305729196
A156: 77 | B156: 37.79306149 | C156: 1.343903524 | D156: 0.6596133574 | E156: -0.6963025567 | F156: -0.376824221 | G156: 0.4848372505 | H156: 0.1419964936
A157: 77.5 | B157: 37.88093829 | C157: 1.35263017 | D157: 0.6611470968 | E157: -0.7058061568 | F157: -0.3927463054 | G157: 0.498162331 | H157: 0.1542496604
A158: 78 | B158: 37.96552167 | C158: 1.361356817 | D158: 0.6626233554 | E158: -0.7154696347 | F158: -0.4091310011 | G158: 0.5118967982 | H158: 0.167388176
A159: 78.5 | B159: 38.046794 | C159: 1.370083463 | D159: 0.6640418251 | E159: -0.7252948965 | F159: -0.4259950319 | G159: 0.5260526869 | H159: 0.1814717672
A160: 79 | B160: 38.1247382 | C160: 1.378810109 | D160: 0.6654022081 | E160: -0.7352838353 | F160: -0.4433558899 | G160: 0.5406423185 | H160: 0.1965644451
A161: 79.5 | B161: 38.19933782 | C161: 1.387536755 | D161: 0.666704217 | E161: -0.74543833 | F161: -0.4612318799 | G161: 0.5556783039 | H161: 0.2127348471
A162: 80 | B162: 38.270577 | C162: 1.396263402 | D162: 0.6679475753 | E162: -0.7557602432 | F162: -0.4796421673 | G162: 0.5711735452 | H162: 0.2300566086
A163: =A162+0.5 -> 80.5 | B163: 38.33844054 | C163: 1.404990048 | D163: 0.6691320176 | E163: -0.7662514192 | F163: -0.4986068288 | G163: 0.5871412375 | H163: 0.2486087697
A164: 81 | B164: 38.40291388 | C164: 1.413716694 | D164: 0.6702572895 | E164: -0.7769136827 | F164: -0.5181469075 | G164: 0.6035948704 | H164: 0.2684762178
A165: 81.5 | B165: 38.4639831 | C165: 1.42244334 | D165: 0.6713231485 | E165: -0.7877488364 | F165: -0.5382844721 | G165: 0.6205482293 | H165: 0.2897501729
A166: 82 | B166: 38.52163496 | C166: 1.431169987 | D166: 0.6723293633 | E166: -0.7987586595 | F166: -0.5590426795 | G166: 0.6380153961 | H166: 0.3125287176
A167: 82.5 | B167: 38.57585693 | C167: 1.439896633 | D167: 0.6732757152 | E167: -0.8099449055 | F167: -0.5804458438 | G167: 0.6560107499 | H167: 0.3369173775
A168: 83 | B168: 38.62663714 | C168: 1.448623279 | D168: 0.6741619971 | E168: -0.8213093003 | F168: -0.6025195086 | G168: 0.6745489667 | H168: 0.3630297583
A169: 83.5 | B169: 38.67396445 | C169: 1.457349925 | D169: 0.6749880145 | E169: -0.8328535403 | F169: -0.6252905272 | G169: 0.6936450196 | H169: 0.3909882435
A170: 84 | B170: 38.71782845 | C170: 1.466076572 | D170: 0.6757535856 | E170: -0.8445792904 | F170: -0.648787147 | G170: 0.7133141778 | H170: 0.4209247621
A171: 84.5 | B171: 38.75821943 | C171: 1.474803218 | D171: 0.6764585412 | E171: -0.8564881818 | F171: -0.6730391018 | G171: 0.7335720056 | H171: 0.4529816326
A172: 85 | B172: 38.79512843 | C172: 1.483529864 | D172: 0.6771027249 | E172: -0.8685818101 | F172: -0.6980777116 | G172: 0.7544343608 | H172: 0.4873124914
A173: 85.5 | B173: 38.82854726 | C173: 1.49225651 | D173: 0.6776859935 | E173: -0.8808617331 | F173: -0.7239359899 | G173: 0.7759173929 | H173: 0.5240833174
A174: 86 | B174: 38.85846846 | C174: 1.500983157 | D174: 0.6782082169 | E174: -0.8933294691 | F174: -0.7506487606 | G174: 0.7980375403 | H174: 0.5634735617
A175: 86.5 | B175: 38.88488534 | C175: 1.509709803 | D175: 0.6786692785 | E175: -0.9059864941 | F175: -0.7782527843 | G175: 0.8208115275 | H175: 0.6056773963
A176: 87 | B176: 38.907792 | C176: 1.518436449 | D176: 0.679069075 | E176: -0.9188342405 | F176: -0.8067868958 | G176: 0.8442563615 | H176: 0.6509050952
A177: 87.5 | B177: 38.92718328 | C177: 1.527163095 | D177: 0.6794075167 | E177: -0.9318740943 | F177: -0.836292153 | G177: 0.8683893277 | H177: 0.6993845651
A178: 88 | B178: 38.94305483 | C178: 1.535889742 | D178: 0.6796845275 | E178: -0.9451073936 | F178: -0.8668119993 | G178: 0.8932279855 | H178: 0.7513630421
A179: 88.5 | B179: 38.95540308 | C179: 1.544616388 | D179: 0.6799000452 | E179: -0.958535426 | F179: -0.8983924405 | G179: 0.918790163 | H179: 0.8071089771
A180: 89 | B180: 38.96422525 | C180: 1.553343034 | D180: 0.6800540211 | E180: -0.9721594268 | F180: -0.9310822374 | G180: 0.9450939512 | H180: 0.8669141327
A181: 89.5 | B181: 38.96951934 | C181: 1.562069681 | D181: 0.6801464205 | E181: -0.9859805768 | F181: -0.9649331164 | G181: 0.9721576977 | H181: 0.9310959192

Sheet Sheet2
A19: n1 = | B19: =Sheet1!K2 -> 1 | F19: n2 = | G19: =Sheet1!L2 -> 1.59
